[Event "Late-Titled-Tuesday-Blitz-May-14-2024"]
[Site "Chess.com"]
[Date "2024.05.14"]
[Round "3"]
[White "alexg2003"]
[Black "HanSchut"]
[Result "0-1"]
[WhiteElo "2578"]
[BlackElo "2382"]
[TimeControl "180+1"]
[EndTime "14:31:24 PDT"]
[Termination "HanSchut won by resignation"]

1. d4 {[%clk 0:03:00.2]} 1... Nf6 {[%clk 0:02:59.1]} 2. c4 {[%clk 0:02:56.4]}
2... g6 {[%clk 0:02:57.4]} 3. Nc3 {[%clk 0:02:56.7]} 3... d5 {[%clk 0:02:57.9]}
4. Nf3 {[%clk 0:02:53.9]} 4... Bg7 {[%clk 0:02:56.9]} 5. e3 {[%clk 0:02:51.6]}
5... O-O {[%clk 0:02:55.8]} 6. Qb3 {[%clk 0:02:43.8]} 6... dxc4 {[%clk
0:02:55.5]} 7. Bxc4 {[%clk 0:02:43.9]} 7... a6 {[%clk 0:02:56.3]} 8. a4 {[%clk
0:02:43.4]} 8... Nc6 {[%clk 0:02:56.2]} 9. Be2 {[%clk 0:02:42]} 9... Na5 {[%clk
0:02:55.7]} 10. Qd1 {[%clk 0:02:41.9]} 10... c5 {[%clk 0:02:55.7]} 11. O-O
{[%clk 0:02:41.6]} 11... cxd4 {[%clk 0:02:55.5]} 12. exd4 {[%clk 0:02:29.8]}
12... Be6 {[%clk 0:02:53.7]} 13. Bg5 {[%clk 0:02:15.5]} 13... Bb3 {[%clk
0:02:45.6]} 14. Qc1 {[%clk 0:02:11.5]} 14... Bd5 {[%clk 0:02:42.7]} 15. Qf4
{[%clk 0:01:51.3]} 15... Rc8 {[%clk 0:02:05.1]} 16. Rad1 {[%clk 0:01:44.8]}
16... Bb3 {[%clk 0:02:02.8]} 17. Rc1 {[%clk 0:01:37.6]} 17... Bc4 {[%clk
0:01:55.4]} 18. Bxc4 {[%clk 0:01:31.4]} 18... Nxc4 {[%clk 0:01:47.8]} 19. Rc2
{[%clk 0:01:15.5]} 19... Nxb2 {[%clk 0:01:35.2]} 20. Rxb2 {[%clk 0:01:12.8]}
20... Rxc3 {[%clk 0:01:35.2]} 21. Rxb7 {[%clk 0:01:11.9]} 21... Rc4 {[%clk
0:01:25.5]} 22. Ra1 {[%clk 0:00:42.7]} 22... e6 {[%clk 0:01:14.5]} 23. h4 {[%clk
0:00:39.5]} 23... Qc8 {[%clk 0:00:59.6]} 24. Ra7 {[%clk 0:00:35.9]} 24... Nd5
{[%clk 0:00:59.6]} 25. Qd6 {[%clk 0:00:34.1]} 25... Rc6 {[%clk 0:00:56]} 26. Qd7
{[%clk 0:00:27.6]} 26... h6 {[%clk 0:00:54.2]} 27. Be7 {[%clk 0:00:25.3]} 27...
Nxe7 {[%clk 0:00:41.3]} 28. Qxe7 {[%clk 0:00:24.4]} 28... Rc1+ {[%clk
0:00:40.6]} 29. Rxc1 {[%clk 0:00:20.7]} 29... Qxc1+ {[%clk 0:00:41.5]} 30. Kh2
{[%clk 0:00:21.3]} 30... Qf4+ {[%clk 0:00:41.8]} 31. Kh3 {[%clk 0:00:13.5]}
31... Qf5+ {[%clk 0:00:18.6]} 32. Kg3 {[%clk 0:00:12.2]} 32... g5 {[%clk
0:00:18]} 33. hxg5 {[%clk 0:00:11.8]} 33... h5 {[%clk 0:00:17.3]} 34. Qc7 {[%clk
0:00:06.5]} 34... Qg4+ {[%clk 0:00:13]} 35. Kh2 {[%clk 0:00:07.2]} 35... Bxd4
{[%clk 0:00:10.3]} 36. Nxd4 {[%clk 0:00:06.7]} 36... Qxd4 {[%clk 0:00:09.1]} 37.
f4 {[%clk 0:00:05.9]} 37... Qf2 {[%clk 0:00:07.6]} 38. Qe5 {[%clk 0:00:05.5]}
38... Qh4+ {[%clk 0:00:07.5]} 39. Kg1 {[%clk 0:00:05.7]} 39... Qg4 {[%clk
0:00:08.3]} 40. Rd7 {[%clk 0:00:04.9]} 40... h4 {[%clk 0:00:08.6]} 41. Rd3
{[%clk 0:00:05.1]} 41... Rc8 {[%clk 0:00:06.6]} 42. Kh2 {[%clk 0:00:05.4]} 42...
Rc2 {[%clk 0:00:05.9]} 43. Qe4 {[%clk 0:00:04.3]} 43... Rf2 {[%clk 0:00:03.7]}
44. Rh3 {[%clk 0:00:03.9]} 44... Qxf4+ {[%clk 0:00:03.9]} 45. Qxf4 {[%clk
0:00:04.3]} 45... Rxf4 {[%clk 0:00:04.8]} 46. Ra3 {[%clk 0:00:04.4]} 46... Kg7
{[%clk 0:00:04.8]} 47. g3 {[%clk 0:00:04.7]} 47... Rf5 {[%clk 0:00:05.3]} 48.
gxh4 {[%clk 0:00:05]} 48... Rf4 {[%clk 0:00:05.9]} 49. Kg3 {[%clk 0:00:05.9]}
49... Rb4 {[%clk 0:00:05.9]} 50. a5 {[%clk 0:00:05.9]} 50... Kg6 {[%clk
0:00:05.9]} 51. Rc3 {[%clk 0:00:06.1]} 51... Rb5 {[%clk 0:00:06]} 52. Rc8 {[%clk
0:00:06.8]} 52... Rxa5 {[%clk 0:00:06.4]} 53. Rg8+ {[%clk 0:00:07.5]} 53... Kf5
{[%clk 0:00:07.2]} 54. h5 {[%clk 0:00:07.6]} 54... Ra3+ {[%clk 0:00:08.1]} 55.
Kh4 {[%clk 0:00:07.7]} 55... Ra4+ {[%clk 0:00:08.5]} 56. Kg3 {[%clk 0:00:07.8]}
56... Ra3+ {[%clk 0:00:09.4]} 57. Kg2 {[%clk 0:00:08.4]} 57... Ra4 {[%clk
0:00:10.1]} 58. Kf3 {[%clk 0:00:07.5]} 58... Ra3+ {[%clk 0:00:10.5]} 59. Ke2
{[%clk 0:00:07.5]} 59... Ra2+ {[%clk 0:00:10.6]} 60. Ke3 {[%clk 0:00:07.5]}
60... Ra3+ {[%clk 0:00:10.6]} 61. Kd4 {[%clk 0:00:08.1]} 61... Rg3 {[%clk
0:00:10.6]} 62. h6 {[%clk 0:00:08.3]} 62... Rh3 {[%clk 0:00:09.5]} 63. Kc5
{[%clk 0:00:08.3]} 63... e5 {[%clk 0:00:09.8]} 64. Rg7 {[%clk 0:00:05.9]} 64...
Ke6 {[%clk 0:00:09.2]} 65. g6 {[%clk 0:00:02.6]} 65... fxg6 {[%clk 0:00:09.4]}
66. Rxg6+ {[%clk 0:00:03.2]} 66... Kf5 {[%clk 0:00:10.3]} 67. Rb6 {[%clk
0:00:03.6]} 67... e4 {[%clk 0:00:09.2]} 68. Kd4 {[%clk 0:00:04]} 68... Rd3+
{[%clk 0:00:08.5]} 69. Kc4 {[%clk 0:00:04.2]} 69... Rh3 {[%clk 0:00:09.4]} 70.
Rxa6 {[%clk 0:00:04.6]} 70... Kf4 {[%clk 0:00:08.4]} 71. Kd4 {[%clk 0:00:04.9]}
71... Rd3+ {[%clk 0:00:08.6]} 72. Kc4 {[%clk 0:00:05]} 72... Rh3 {[%clk
0:00:09.5]} 73. Rf6+ {[%clk 0:00:04.5]} 73... Ke3 {[%clk 0:00:09.9]} 74. Kc3
{[%clk 0:00:04.6]} 74... Ke2+ {[%clk 0:00:09.6]} 75. Kd4 {[%clk 0:00:04.7]}
75... e3 {[%clk 0:00:09.5]} 76. Re6 {[%clk 0:00:05.2]} 76... Rh4+ {[%clk
0:00:10]} 77. Re4 {[%clk 0:00:03.8]} 77... Rxe4+ {[%clk 0:00:08.7]} 78. Kxe4
{[%clk 0:00:04.7]} 78... Kd2 {[%clk 0:00:08.7]} 79. h7 {[%clk 0:00:05.6]} 79...
e2 {[%clk 0:00:09.4]} 80. h8=Q {[%clk 0:00:06.5]} 80... e1=Q+ {[%clk 0:00:10.3]}
81. Kd5 {[%clk 0:00:07.2]} 81... Qe3 {[%clk 0:00:10.3]} 82. Qh5 {[%clk
0:00:06.4]} 82... Qd3+ {[%clk 0:00:09.9]} 83. Kc6 {[%clk 0:00:06.8]} 83... Qc2+
{[%clk 0:00:09.9]} 84. Kb5 {[%clk 0:00:07.2]} 84... Qd3+ {[%clk 0:00:10.8]} 85.
Kb4 {[%clk 0:00:07.2]} 85... Qc3+ {[%clk 0:00:11]} 86. Kb5 {[%clk 0:00:07.6]}
86... Qd3+ {[%clk 0:00:11.3]} 87. Kb6 {[%clk 0:00:08.3]} 87... Qb3+ {[%clk
0:00:11.1]} 88. Kc7 {[%clk 0:00:08.6]} 88... Qc3+ {[%clk 0:00:10.2]} 89. Kb8
{[%clk 0:00:08.3]} 89... Qb3+ {[%clk 0:00:10.3]} 90. Ka7 {[%clk 0:00:08.8]}
90... Qa3+ {[%clk 0:00:09.9]} 91. Kb6 {[%clk 0:00:09.3]} 91... Qb3+ {[%clk
0:00:10]} 92. Kc6 {[%clk 0:00:09.8]} 92... Qc3+ {[%clk 0:00:10.5]} 93. Kd7
{[%clk 0:00:10.2]} 93... Qd3+ {[%clk 0:00:10.7]} 94. Ke7 {[%clk 0:00:10.8]}
94... Qe2+ {[%clk 0:00:10.7]} 95. Kf6 {[%clk 0:00:10.9]} 95... Qxh5 {[%clk
0:00:10.6]} 0-1

[Event "Late-Titled-Tuesday-Blitz-May-14-2024"]
[Site "Chess.com"]
[Date "2024.05.14"]
[Round "4"]
[White "Timurist"]
[Black "varunkrishnanchess"]
[Result "0-1"]
[WhiteElo "2336"]
[BlackElo "2608"]
[TimeControl "180+1"]
[EndTime "14:33:59 PDT"]
[Termination "varunkrishnanchess won by resignation"]

1. e4 {[%clk 0:03:00.9]} 1... a6 {[%clk 0:03:00.9]} 2. d4 {[%clk 0:02:58]} 2...
e6 {[%clk 0:03:01]} 3. a4 {[%clk 0:02:53.3]} 3... d5 {[%clk 0:02:59.1]} 4. e5
{[%clk 0:02:52.3]} 4... c5 {[%clk 0:02:58.6]} 5. c3 {[%clk 0:02:52.6]} 5... Nc6
{[%clk 0:02:58.1]} 6. Nf3 {[%clk 0:02:52.7]} 6... Nh6 {[%clk 0:02:54.9]} 7. Na3
{[%clk 0:02:47]} 7... Qb6 {[%clk 0:02:47.9]} 8. Bd3 {[%clk 0:02:38.8]} 8... cxd4
{[%clk 0:02:45]} 9. cxd4 {[%clk 0:02:39.7]} 9... Bb4+ {[%clk 0:02:39.4]} 10. Bd2
{[%clk 0:02:39.6]} 10... Nxd4 {[%clk 0:02:38.8]} 11. Nxd4 {[%clk 0:02:31.8]}
11... Qxd4 {[%clk 0:02:37.2]} 12. Bxb4 {[%clk 0:02:29.7]} 12... Qxb4+ {[%clk
0:02:36.8]} 13. Kf1 {[%clk 0:02:28.7]} 13... O-O {[%clk 0:02:35.9]} 14. Rc1
{[%clk 0:02:22.1]} 14... Qxb2 {[%clk 0:02:34.7]} 15. Nc2 {[%clk 0:02:18.7]}
15... Qxe5 {[%clk 0:02:34.2]} 0-1

[Event "Late-Titled-Tuesday-Blitz-May-14-2024"]
[Site "Chess.com"]
[Date "2024.05.14"]
[Round "4"]
[White "dealshark"]
[Black "glebus008"]
[Result "1-0"]
[WhiteElo "2551"]
[BlackElo "2368"]
[TimeControl "180+1"]
[EndTime "14:34:13 PDT"]
[Termination "dealshark won by resignation"]

1. e4 {[%clk 0:03:00.9]} 1... Nc6 {[%clk 0:02:59.5]} 2. Nf3 {[%clk 0:02:59.8]}
2... d5 {[%clk 0:02:59.8]} 3. exd5 {[%clk 0:02:58.9]} 3... Qxd5 {[%clk
0:03:00.7]} 4. h3 {[%clk 0:02:59.2]} 4... e5 {[%clk 0:02:56.9]} 5. Nc3 {[%clk
0:02:58.5]} 5... Qa5 {[%clk 0:02:56.8]} 6. Bc4 {[%clk 0:02:58.6]} 6... Nf6
{[%clk 0:02:49.8]} 7. O-O {[%clk 0:02:58.9]} 7... Bf5 {[%clk 0:02:48.2]} 8. d3
{[%clk 0:02:58.9]} 8... Bd6 {[%clk 0:02:34.4]} 9. Re1 {[%clk 0:02:57.7]} 9...
O-O {[%clk 0:02:34.2]} 10. Bd2 {[%clk 0:02:57.9]} 10... Qc5 {[%clk 0:02:01.9]}
11. Na4 {[%clk 0:02:46.1]} 1-0

[Event "Late-Titled-Tuesday-Blitz-May-14-2024"]
[Site "Chess.com"]
[Date "2024.05.14"]
[Round "4"]
[White "hikaruchija"]
[Black "super_emi_26"]
[Result "0-1"]
[WhiteElo "2579"]
[BlackElo "2866"]
[TimeControl "180+1"]
[EndTime "14:34:41 PDT"]
[Termination "super_emi_26 won by resignation"]

1. d4 {[%clk 0:03:00.9]} 1... g6 {[%clk 0:03:00.9]} 2. c4 {[%clk 0:02:59.9]}
2... Bg7 {[%clk 0:02:58.5]} 3. Nc3 {[%clk 0:02:58.7]} 3... c5 {[%clk 0:02:59.1]}
4. d5 {[%clk 0:02:58.4]} 4... Bxc3+ {[%clk 0:03:00]} 5. bxc3 {[%clk 0:02:58.5]}
5... f5 {[%clk 0:03:00.9]} 6. Qa4 {[%clk 0:02:56.4]} 6... Nf6 {[%clk 0:02:58.4]}
7. h4 {[%clk 0:02:56.4]} 7... Qb6 {[%clk 0:02:53.4]} 8. Nf3 {[%clk 0:02:38.7]}
8... Qa6 {[%clk 0:02:52.5]} 9. Qb3 {[%clk 0:02:31.6]} 9... d6 {[%clk 0:02:51.4]}
10. Ng5 {[%clk 0:02:29.3]} 10... h6 {[%clk 0:02:50]} 11. Nf3 {[%clk 0:02:26.8]}
11... Nbd7 {[%clk 0:02:49.8]} 12. a4 {[%clk 0:02:13.5]} 12... Qa5 {[%clk
0:02:37.7]} 13. Nd2 {[%clk 0:02:03.5]} 13... Ne5 {[%clk 0:02:34.9]} 14. Qc2
{[%clk 0:01:56.4]} 14... b6 {[%clk 0:02:32.5]} 15. e4 {[%clk 0:01:55.2]} 15...
fxe4 {[%clk 0:02:31.9]} 16. Nxe4 {[%clk 0:01:53.1]} 16... Nxe4 {[%clk
0:02:32.1]} 17. Qxe4 {[%clk 0:01:48.1]} 17... Qxc3+ {[%clk 0:02:31.9]} 0-1

[Event "Late-Titled-Tuesday-Blitz-May-14-2024"]
[Site "Chess.com"]
[Date "2024.05.14"]
[Round "4"]
[White "TreinadorBR"]
[Black "betta2004"]
[Result "0-1"]
[WhiteElo "2335"]
[BlackElo "2526"]
[TimeControl "180+1"]
[EndTime "14:34:52 PDT"]
[Termination "betta2004 won by resignation"]

1. e4 {[%clk 0:03:00.9]} 1... e5 {[%clk 0:02:57.4]} 2. Nf3 {[%clk 0:03:00.4]}
2... Nc6 {[%clk 0:02:57.1]} 3. Bc4 {[%clk 0:03:00.8]} 3... Bc5 {[%clk
0:02:56.4]} 4. c3 {[%clk 0:03:01.2]} 4... Nf6 {[%clk 0:02:55.6]} 5. d3 {[%clk
0:03:01.8]} 5... O-O {[%clk 0:02:54.8]} 6. Bb3 {[%clk 0:03:02.4]} 6... d6 {[%clk
0:02:53]} 7. Nbd2 {[%clk 0:03:02]} 7... Ne7 {[%clk 0:02:51.6]} 8. h3 {[%clk
0:02:59.4]} 8... Ng6 {[%clk 0:02:52.1]} 9. Nf1 {[%clk 0:02:59.9]} 9... h6 {[%clk
0:02:52.4]} 10. Ng3 {[%clk 0:03:00.4]} 10... a6 {[%clk 0:02:45.9]} 11. O-O
{[%clk 0:03:00.8]} 11... Ba7 {[%clk 0:02:44.5]} 12. Qe2 {[%clk 0:02:48.4]} 12...
Be6 {[%clk 0:02:40.7]} 13. Bc2 {[%clk 0:02:47]} 13... b5 {[%clk 0:02:33.2]} 14.
Be3 {[%clk 0:02:47.2]} 14... Bxe3 {[%clk 0:02:30.2]} 15. fxe3 {[%clk 0:02:48.1]}
15... c5 {[%clk 0:02:30.1]} 16. Nf5 {[%clk 0:02:47.3]} 16... d5 {[%clk
0:02:22.2]} 17. N3h4 {[%clk 0:02:43.5]} 17... Nxh4 {[%clk 0:02:19.9]} 18. Nxh4
{[%clk 0:02:43.1]} 18... dxe4 {[%clk 0:02:20.3]} 19. dxe4 {[%clk 0:02:43.3]}
19... Bc4 {[%clk 0:02:10.9]} 20. Qf2 {[%clk 0:02:39.6]} 20... Bxf1 {[%clk
0:02:09.6]} 21. Rxf1 {[%clk 0:02:40.5]} 21... Ne8 {[%clk 0:02:06.3]} 22. Qg3
{[%clk 0:02:39]} 22... Qg5 {[%clk 0:02:00.3]} 23. Qf2 {[%clk 0:02:38.4]} 23...
Nd6 {[%clk 0:01:58.6]} 24. Nf5 {[%clk 0:02:37.7]} 24... Nxf5 {[%clk 0:01:58.2]}
25. exf5 {[%clk 0:02:38.6]} 25... Rad8 {[%clk 0:01:57.9]} 26. Be4 {[%clk
0:02:37.3]} 26... Rd6 {[%clk 0:01:55.6]} 27. Qf3 {[%clk 0:02:35.9]} 27... Rfd8
{[%clk 0:01:55.1]} 28. Bd5 {[%clk 0:02:36.3]} 28... Rxd5 {[%clk 0:01:54.8]} 0-1

[Event "Late-Titled-Tuesday-Blitz-May-14-2024"]
[Site "Chess.com"]
[Date "2024.05.14"]
[Round "4"]
[White "FuenfgegenWilly"]
[Black "ArtemDyachuk"]
[Result "0-1"]
[WhiteElo "2466"]
[BlackElo "2703"]
[TimeControl "180+1"]
[EndTime "14:35:20 PDT"]
[Termination "ArtemDyachuk won by resignation"]

1. b3 {[%clk 0:03:00.9]} 1... e5 {[%clk 0:02:59.6]} 2. Bb2 {[%clk 0:03:01.8]}
2... Nc6 {[%clk 0:02:59.6]} 3. e3 {[%clk 0:03:02.1]} 3... Nf6 {[%clk 0:03:00]}
4. c4 {[%clk 0:03:02.4]} 4... d5 {[%clk 0:02:58.9]} 5. cxd5 {[%clk 0:03:03.3]}
5... Nxd5 {[%clk 0:02:59.3]} 6. a3 {[%clk 0:03:04.2]} 6... Bd6 {[%clk
0:02:55.6]} 7. Qc2 {[%clk 0:03:04.4]} 7... O-O {[%clk 0:02:53.2]} 8. Nf3 {[%clk
0:03:04.8]} 8... Bg4 {[%clk 0:02:36.8]} 9. Bd3 {[%clk 0:02:50.2]} 9... Kh8
{[%clk 0:02:27.9]} 10. Bxh7 {[%clk 0:02:31.4]} 10... f5 {[%clk 0:02:24.1]} 11.
Qc4 {[%clk 0:01:48.3]} 11... Nb6 {[%clk 0:02:09.9]} 12. Qe6 {[%clk 0:01:47.5]}
12... Kxh7 {[%clk 0:02:09.2]} 13. Nxe5 {[%clk 0:01:37.1]} 13... Bxe5 {[%clk
0:02:01.6]} 14. Bxe5 {[%clk 0:01:34.8]} 14... Re8 {[%clk 0:02:01.7]} 15. Qf7
{[%clk 0:01:33.3]} 15... Nxe5 {[%clk 0:02:01.3]} 0-1

[Event "Late-Titled-Tuesday-Blitz-May-14-2024"]
[Site "Chess.com"]
[Date "2024.05.14"]
[Round "4"]
[White "colegiodemadrid"]
[Black "PapaieDudu"]
[Result "0-1"]
[WhiteElo "2534"]
[BlackElo "2385"]
[TimeControl "180+1"]
[EndTime "14:35:46 PDT"]
[Termination "PapaieDudu won by resignation"]

1. d4 {[%clk 0:03:00.2]} 1... d5 {[%clk 0:03:00.2]} 2. c4 {[%clk 0:02:59.4]}
2... e6 {[%clk 0:03:00.5]} 3. Nc3 {[%clk 0:02:59.2]} 3... Nf6 {[%clk 0:03:00.5]}
4. cxd5 {[%clk 0:02:59.9]} 4... exd5 {[%clk 0:02:55.8]} 5. Bg5 {[%clk
0:02:56.5]} 5... Be7 {[%clk 0:02:55.7]} 6. e3 {[%clk 0:02:56]} 6... Nbd7 {[%clk
0:02:56.2]} 7. h3 {[%clk 0:02:56.1]} 7... O-O {[%clk 0:02:53.1]} 8. Bd3 {[%clk
0:02:56.5]} 8... Re8 {[%clk 0:02:53.2]} 9. Nf3 {[%clk 0:02:53.5]} 9... c6 {[%clk
0:02:50.1]} 10. Rc1 {[%clk 0:02:52.5]} 10... Bd6 {[%clk 0:02:50.4]} 11. O-O
{[%clk 0:02:47.3]} 11... a6 {[%clk 0:02:50.4]} 12. a3 {[%clk 0:02:44.3]} 12...
Qc7 {[%clk 0:02:48.6]} 13. Re1 {[%clk 0:02:40.9]} 13... h6 {[%clk 0:02:47.5]}
14. Bxf6 {[%clk 0:02:29.7]} 14... Nxf6 {[%clk 0:02:48.1]} 15. b4 {[%clk
0:02:28.3]} 15... Qe7 {[%clk 0:02:24.1]} 16. Qb3 {[%clk 0:02:15.6]} 16... Ne4
{[%clk 0:02:18.2]} 17. Na4 {[%clk 0:02:15.6]} 17... Ng5 {[%clk 0:01:58.9]} 18.
Nxg5 {[%clk 0:02:00.3]} 18... Qxg5 {[%clk 0:01:57.9]} 19. Kh1 {[%clk 0:01:59.3]}
19... Qh4 {[%clk 0:01:49.9]} 20. Bf1 {[%clk 0:01:40.1]} 20... Qxf2 {[%clk
0:01:44.4]} 0-1

[Event "Late-Titled-Tuesday-Blitz-May-14-2024"]
[Site "Chess.com"]
[Date "2024.05.14"]
[Round "4"]
[White "Duhless"]
[Black "Aygehovit1992"]
[Result "1-0"]
[WhiteElo "3114"]
[BlackElo "2852"]
[TimeControl "180+1"]
[EndTime "14:35:56 PDT"]
[Termination "Duhless won by checkmate"]

1. e4 {[%clk 0:03:00.9]} 1... c5 {[%clk 0:02:59.7]} 2. Nf3 {[%clk 0:03:00.7]}
2... e6 {[%clk 0:03:00.3]} 3. c3 {[%clk 0:02:58.1]} 3... d5 {[%clk 0:03:00.1]}
4. e5 {[%clk 0:02:58.5]} 4... d4 {[%clk 0:03:00.5]} 5. d3 {[%clk 0:02:58.9]}
5... Nc6 {[%clk 0:02:59.8]} 6. g3 {[%clk 0:02:59.3]} 6... dxc3 {[%clk
0:02:59.6]} 7. Nxc3 {[%clk 0:02:56.8]} 7... Nge7 {[%clk 0:02:53.1]} 8. Bg2
{[%clk 0:02:56.2]} 8... Ng6 {[%clk 0:02:50.6]} 9. Qe2 {[%clk 0:02:56.3]} 9... b6
{[%clk 0:02:44.2]} 10. h4 {[%clk 0:02:43.1]} 10... Ba6 {[%clk 0:02:37]} 11. Bg5
{[%clk 0:02:13.2]} 11... Qxd3 {[%clk 0:02:23.7]} 12. Qxd3 {[%clk 0:02:08.9]}
12... Bxd3 {[%clk 0:02:24.6]} 13. O-O-O {[%clk 0:02:01.5]} 13... c4 {[%clk
0:02:25]} 14. Ne1 {[%clk 0:01:02.7]} 14... Rc8 {[%clk 0:02:24.5]} 15. Nxd3
{[%clk 0:01:01.3]} 15... cxd3 {[%clk 0:02:25.4]} 16. Bxc6+ {[%clk 0:00:58]}
16... Rxc6 {[%clk 0:02:26.3]} 17. Rxd3 {[%clk 0:00:58.4]} 17... Bb4 {[%clk
0:02:05.9]} 18. Rd8# {[%clk 0:00:57]} 1-0

[Event "Late-Titled-Tuesday-Blitz-May-14-2024"]
[Site "Chess.com"]
[Date "2024.05.14"]
[Round "4"]
[White "Mischuk_D"]
[Black "tgpgoat"]
[Result "1-0"]
[WhiteElo "2700"]
[BlackElo "2461"]
[TimeControl "180+1"]
[EndTime "14:36:18 PDT"]
[Termination "Mischuk_D won by resignation"]

1. d4 {[%clk 0:03:00.9]} 1... Nf6 {[%clk 0:02:59.5]} 2. c4 {[%clk 0:03:00.8]}
2... c5 {[%clk 0:02:59.9]} 3. d5 {[%clk 0:03:00.7]} 3... b5 {[%clk 0:03:00.2]}
4. Qc2 {[%clk 0:03:00]} 4... bxc4 {[%clk 0:03:00.1]} 5. e4 {[%clk 0:03:00]} 5...
d6 {[%clk 0:03:00.1]} 6. Bxc4 {[%clk 0:02:58.4]} 6... g6 {[%clk 0:03:00.7]} 7.
Nc3 {[%clk 0:02:56.5]} 7... Bg7 {[%clk 0:03:01.3]} 8. Nf3 {[%clk 0:02:55.9]}
8... O-O {[%clk 0:03:01.9]} 9. O-O {[%clk 0:02:55.8]} 9... Nfd7 {[%clk
0:03:01.3]} 10. Re1 {[%clk 0:02:55]} 10... Ba6 {[%clk 0:03:01.1]} 11. Nb5 {[%clk
0:02:48.4]} 11... Nb6 {[%clk 0:02:58.6]} 12. Bf1 {[%clk 0:02:47.7]} 12... N8d7
{[%clk 0:02:58.1]} 13. a4 {[%clk 0:02:46.6]} 13... Ne5 {[%clk 0:02:55]} 14. Nxe5
{[%clk 0:02:45.4]} 14... Bxe5 {[%clk 0:02:55.9]} 15. Bd2 {[%clk 0:02:40.7]}
15... Nd7 {[%clk 0:02:54.4]} 16. Bc3 {[%clk 0:02:39.9]} 16... Bxc3 {[%clk
0:02:53.9]} 17. Qxc3 {[%clk 0:02:34.9]} 17... Qb6 {[%clk 0:02:49.6]} 18. b3
{[%clk 0:02:32.3]} 18... Rab8 {[%clk 0:02:48.1]} 19. Bc4 {[%clk 0:02:31.5]}
19... Ne5 {[%clk 0:02:47.4]} 20. h3 {[%clk 0:02:29.9]} 20... Bxb5 {[%clk
0:02:47.6]} 21. axb5 {[%clk 0:02:29.7]} 21... Rb7 {[%clk 0:02:43.4]} 22. Ra6
{[%clk 0:02:28.8]} 22... Qc7 {[%clk 0:02:39]} 23. Rea1 {[%clk 0:02:29.3]} 23...
Nd7 {[%clk 0:02:34.7]} 24. Qa5 {[%clk 0:02:27.6]} 24... Ra8 {[%clk 0:02:28.6]}
25. Qxc7 {[%clk 0:02:27.3]} 25... Rxc7 {[%clk 0:02:29.5]} 26. b6 {[%clk
0:02:25.3]} 26... Nxb6 {[%clk 0:02:05.1]} 27. Rxb6 {[%clk 0:02:25.1]} 27... axb6
{[%clk 0:02:05.8]} 28. Rxa8+ {[%clk 0:02:24.5]} 28... Kg7 {[%clk 0:02:06.7]} 29.
Rb8 {[%clk 0:02:23.1]} 29... Ra7 {[%clk 0:02:06.7]} 30. f3 {[%clk 0:02:21]}
30... Ra2 {[%clk 0:02:01.1]} 31. Rxb6 {[%clk 0:02:20.1]} 31... Rc2 {[%clk
0:02:00.9]} 32. Kh2 {[%clk 0:02:18.6]} 32... Kf6 {[%clk 0:02:01.2]} 33. h4
{[%clk 0:02:18.3]} 33... h5 {[%clk 0:02:01.4]} 34. Rb7 {[%clk 0:02:17.4]} 34...
Rb2 {[%clk 0:02:00.4]} 35. Kg3 {[%clk 0:02:17.5]} 35... Rb1 {[%clk 0:01:58.3]}
36. Rb6 {[%clk 0:02:14.8]} 36... Ke5 {[%clk 0:01:54.6]} 37. Rb7 {[%clk
0:02:12.1]} 37... Kf6 {[%clk 0:01:54.6]} 38. f4 {[%clk 0:02:12.8]} 38... Rc1
{[%clk 0:01:52]} 39. Rb6 {[%clk 0:02:11.3]} 39... Rc3+ {[%clk 0:01:51.1]} 40.
Kf2 {[%clk 0:02:11.5]} 40... Kg7 {[%clk 0:01:47.2]} 41. e5 {[%clk 0:02:10.8]}
41... dxe5 {[%clk 0:01:46.7]} 42. fxe5 {[%clk 0:02:11.1]} 42... Rc2+ {[%clk
0:01:47.4]} 43. Kf3 {[%clk 0:02:10.5]} 43... Rc1 {[%clk 0:01:46.8]} 44. d6
{[%clk 0:02:10.2]} 44... exd6 {[%clk 0:01:46.7]} 45. exd6 {[%clk 0:02:10.6]}
45... Rd1 {[%clk 0:01:46.8]} 46. Bb5 {[%clk 0:02:04.2]} 46... Kf6 {[%clk
0:01:46]} 47. d7+ {[%clk 0:02:03.9]} 47... Ke7 {[%clk 0:01:46]} 48. Rb8 {[%clk
0:02:04.6]} 1-0

[Event "Late-Titled-Tuesday-Blitz-May-14-2024"]
[Site "Chess.com"]
[Date "2024.05.14"]
[Round "4"]
[White "Sanan_Sjugirov"]
[Black "PepeCuenca"]
[Result "1-0"]
[WhiteElo "3049"]
[BlackElo "2817"]
[TimeControl "180+1"]
[EndTime "14:36:30 PDT"]
[Termination "Sanan_Sjugirov won by resignation"]

1. d4 {[%clk 0:03:00.9]} 1... Nf6 {[%clk 0:02:59.9]} 2. c4 {[%clk 0:03:00.4]}
2... g6 {[%clk 0:03:00.3]} 3. Nc3 {[%clk 0:03:00.2]} 3... Bg7 {[%clk 0:03:01.1]}
4. e4 {[%clk 0:03:00.4]} 4... d6 {[%clk 0:03:01.8]} 5. Be2 {[%clk 0:02:58]} 5...
O-O {[%clk 0:03:01.6]} 6. Be3 {[%clk 0:02:58.7]} 6... Nc6 {[%clk 0:03:01.8]} 7.
Nf3 {[%clk 0:02:58.3]} 7... Ng4 {[%clk 0:02:57.2]} 8. Bg5 {[%clk 0:02:57.6]}
8... h6 {[%clk 0:02:57.3]} 9. Bh4 {[%clk 0:02:57.8]} 9... g5 {[%clk 0:02:57.8]}
10. Bg3 {[%clk 0:02:58.1]} 10... e5 {[%clk 0:02:58.4]} 11. dxe5 {[%clk 0:02:58]}
11... Ncxe5 {[%clk 0:02:45.1]} 12. h4 {[%clk 0:02:55.7]} 12... Be6 {[%clk
0:02:44.4]} 13. hxg5 {[%clk 0:02:51.3]} 13... hxg5 {[%clk 0:02:45.3]} 14. Rh5
{[%clk 0:02:23.8]} 14... Nxf3+ {[%clk 0:02:36]} 15. gxf3 {[%clk 0:02:23.5]}
15... Ne5 {[%clk 0:02:33.6]} 16. Qd2 {[%clk 0:02:20.3]} 16... Qf6 {[%clk
0:01:50.3]} 17. f4 {[%clk 0:02:00.6]} 17... gxf4 {[%clk 0:01:45.5]} 18. Bxf4
{[%clk 0:02:01.5]} 18... Nxc4 {[%clk 0:01:21]} 19. Bxc4 {[%clk 0:02:00.7]} 19...
Bxc4 {[%clk 0:01:21.9]} 20. O-O-O {[%clk 0:01:59.2]} 20... Rfe8 {[%clk
0:01:10.7]} 21. Rg1 {[%clk 0:01:57.8]} 21... Kf8 {[%clk 0:01:07.1]} 22. Rh7
{[%clk 0:01:51.8]} 22... Bh8 {[%clk 0:00:55.4]} 23. Bh6+ {[%clk 0:01:50.1]} 1-0